fUSD/lending_fUSD_20240701
["ID","MTS","AMOUNT","RATE_DAILY","PERIOD"]
[330801381,1719807041029,-3605.31126478,0.00017795,2]
[330801382,1719807041038,-250.24,0.00017828,2]
[330801383,1719807041048,-370.00548798,0.00018,2]
[330801384,1719807041057,-1546.126,0.00018068,2]
[330801385,1719807041066,-1035.91646514,0.00018233,2]
[330801386,1719807041075,-1919.37637206,0.00018233,2]
[330801387,1719807041084,-153.3118478,0.0001852,2]
[330801388,1719807041093,-153.3118478,0.00018549,2]
[330801389,1719807041102,-3605.31126478,0.00018563,2]
[330801390,1719807041112,-152.28709696,0.00018566,2]
[330801391,1719807041121,-227.0716558,0.00018649,2]
[330801392,1719807041130,-2100.0,0.00018693,2]
[330801393,1719807041139,-544.90189,0.0001879,2]
[330801394,1719807041148,-70588.39459769,0.000188,10]
[330801395,1719807041161,-8427.38331438,0.000188,10]
[330801396,1719807041172,-268.03773527,0.000188,10]
[330801410,1719807043284,-255.53691839,0.00016808,2]
[330801411,1719807043296,-155.31943167,0.00017257,2]
[330801412,1719807043307,-1864.28178793,0.000188,10]
[330801413,1719807043344,-318.73199833,0.000188,10]
[330801466,1719807046574,-227.0716558,0.00018432,2]
[330801468,1719807046583,-86.42677159,0.000188,10]
[330801547,1719807053260,-200000.0,0.000225,120]
[330801548,1719807109046,-200000.0,0.000225,120]
[330801550,1719807422343,24799.10887843,0.00013999,2]
[330801551,1719807464906,10543.72975915,0.00013999,2]
[330801552,1719807507563,2115.18727253,0.00013999,2]
[330801553,1719807606105,-194998.86499935,0.000225,120]
[330801554,1719807665518,200.0,0.00013881,2]
[330801555,1719807954957,1398.36172563,0.00013999,2]
[330801556,1719808088467,530.92308238,0.00013999,2]
[330801557,1719808097957,-200000.0,0.000225,120]
[330801558,1719808126752,-200000.0,0.000225,120]
[330801559,1719808220737,293.56,0.0001339,2]
[330801566,1719808231830,-250.0,0.00014369,2]
[330801567,1719808231840,-1500.0,0.00014499,2]
[330801568,1719808231849,-10259.56162535,0.00014799,2]
[330801569,1719808231935,-1898.3477175,0.00014799,2]
[330801570,1719808231948,-3396.44912607,0.00014799,2]
[330801571,1719808232047,-358.44563108,0.00014799,2]
[330801572,1719808232060,-180.0,0.00014899,2]
[330801573,1719808232070,-421.01990377,0.000149,2]
[330801574,1719808232085,-979.38,0.000149,2]
[330801575,1719808232136,-2041.95350454,0.000149,2]
[330801576,1719808232153,-42469.29161815,0.000149,2]
[330801577,1719808232165,-5656.35932623,0.000149,2]
[330801583,1719808237458,-13062.55364731,0.000149,2]
[330801584,1719808237467,-181.71934961,0.00014999,2]
[330801585,1719808237477,-250.47288687,0.00014999,2]
[330801586,1719808237486,-155.16514517,0.00014999,2]
[330801587,1719808237496,-500.0,0.00015102,2]
[330801588,1719808237506,-501.97631196,0.00015102,2]
[330801589,1719808237516,-500.0,0.00015102,2]
[330801590,1719808237526,-250.0,0.00015109,2]
[330801591,1719808237536,-266.23707899,0.00015166,2]
[330801592,1719808237545,-7884.02,0.00015266,2]
[330801593,1719808237555,-600.0,0.0001531,2]
[330801594,1719808237565,-499.99,0.0001531,2]
[330801595,1719808237577,-8211.36046356,0.00015399,2]
[330801596,1719808237587,-1517.6786,0.000154,2]
[330801597,1719808237596,-486.3734,0.000154,2]
[330801598,1719808237606,-215.4,0.00015479,2]
[330801599,1719808237615,-33167.21000217,0.000155,2]
[330801600,1719808237886,-723.05503494,0.000155,2]
[330801601,1719808237898,-597.24,0.000155,2]
[330801602,1719808237921,-859.13752904,0.000155,2]
[330801603,1719808237948,-847.10164695,0.000155,2]
[330801613,1719808239567,-450.07456747,0.00014966,2]
[330801614,1719808239578,-1075.43658551,0.000155,2]
[330801615,1719808239590,-4608.46810061,0.000155,2]
[330801616,1719808239603,-48348.48038162,0.000155,2]
[330801617,1719808239616,-826.10750867,0.000155,2]
[330801618,1719808239684,-6163.25961049,0.000155,2]
[330801619,1719808239695,-3232.0,0.000155,2]
[330801620,1719808239706,-1398.36172563,0.00015579,2]
[330801621,1719808239716,-170.73,0.00015581,2]
[330801622,1719808239727,-39016.08636972,0.00015633,2]
[330801623,1719808239841,-646.82068308,0.00015633,2]
[330801624,1719808239854,-1012.47289086,0.00015633,2]
[330801625,1719808239868,-1486.64134906,0.00015633,2]
[330801626,1719808239990,-902.3703329,0.00015633,2]
[330801627,1719808240078,-22113.02197438,0.00015633,2]
[330801628,1719808240089,-293.56,0.00015654,2]
[330801629,1719808240100,-155.60196603,0.00015832,2]
[330801630,1719808240110,-400.0,0.00015993,2]
[330801631,1719808240120,-270.0,0.0001624,2]
[330801632,1719808240131,-166.284,0.00016315,2]
[330801633,1719808240142,-3394.98990535,0.00016315,2]
[330801634,1719808240159,-791.86312456,0.00016699,2]
[330801635,1719808240170,-500.0,0.00016746,2]
[330801636,1719808240181,-500.0,0.00016746,2]
[330801637,1719808240192,-465.5729,0.00016905,2]
[330801638,1719808240204,-500.0,0.00016905,2]
[330801639,1719808240214,-166.284,0.00017172,2]
[330801640,1719808240225,-600.0,0.00017223,2]
[330801641,1719808240236,-200.0,0.00017423,2]
[330801642,1719808240247,-150.0,0.0001749,2]
[330801643,1719808240258,-170.75,0.00017658,2]
[330801644,1719808240268,-182.95,0.00017663,2]
[330801645,1719808240278,-405.0,0.000177,2]
[330801646,1719808240289,-5000.0,0.00017807,2]
[330801647,1719808240299,-500.0,0.00017842,2]
[330801648,1719808240310,-500.0,0.00017842,2]
[330801649,1719808240321,-293.56,0.00017918,2]
[330801650,1719808240332,-3975.5052,0.00017973,2]
[330801651,1719808240341,-150.0,0.00017975,2]
[330801652,1719808240351,-400.0,0.00017993,2]
[330801653,1719808240362,-1000.0,0.00018,2]
[330801654,1719808240372,-370.4087103,0.00018,2]
[330801655,1719808240383,-233.37226566,0.00018,2]
[330801656,1719808240393,-198.07008182,0.00018,2]
[330801661,1719808242643,-35.30218384,0.00018,2]
[330801662,1719808242653,-233.37226566,0.00018,2]
[330801663,1719808242663,-233.37226566,0.00018,2]
[330801664,1719808242672,-233.37226566,0.00018,2]
[330801665,1719808242681,-233.37226566,0.00018,2]
[330801666,1719808242691,-196.04248304,0.00018,2]
[330801667,1719808242702,-37.32978262,0.00018,2]
[330801668,1719808242711,-233.37226566,0.00018,2]
[330801669,1719808242720,-233.37226566,0.00018,2]
[330801670,1719808242729,-233.37226566,0.00018,2]
[330801671,1719808242738,-233.37226566,0.00018,2]
[330801672,1719808242747,-233.37226566,0.00018,2]
[330801673,1719808242756,-233.37226566,0.00018,2]
[330801674,1719808242766,-233.37226566,0.00018,2]
[330801675,1719808242775,-233.37226566,0.00018,2]
[330801676,1719808242785,-233.37226566,0.00018,2]
[330801677,1719808242795,-233.37226566,0.00018,2]
[330801678,1719808242805,-233.37226566,0.00018,2]
[330801679,1719808242816,-233.37226566,0.00018,2]
[330801680,1719808242826,-233.37226566,0.00018,2]
[330801681,1719808242835,-233.37226566,0.00018,2]
[330801682,1719808242846,-233.37226566,0.00018,2]
[330801683,1719808242855,-233.37226566,0.00018,2]
[330801684,1719808242865,-233.37226566,0.00018,2]
[330801685,1719808242876,-233.37226566,0.00018,2]
[330801686,1719808242888,-233.37226566,0.00018,2]
[330801687,1719808242897,-233.37226566,0.00018,2]
[330801688,1719808242907,-233.37226566,0.00018,2]
[330801689,1719808242917,-233.37226566,0.00018,2]
[330801690,1719808242927,-233.37226566,0.00018,2]
[330801691,1719808242937,-233.37226566,0.00018,2]
[330801692,1719808242947,-233.37226566,0.00018,2]
[330801693,1719808242957,-233.37226566,0.00018,2]
[330801694,1719808242967,-233.37226566,0.00018,2]
[330801695,1719808242977,-233.37226566,0.00018,2]
[330801696,1719808242988,-233.37226566,0.00018,2]
[330801697,1719808242997,-150.0,0.00018,2]
[330801698,1719808243007,-150.0,0.00018025,2]
[330801699,1719808243017,-150.0,0.0001805,2]
[330801700,1719808243027,-150.0,0.00018075,2]
[330801701,1719808243038,-1759.20948392,0.00018081,2]
[330801702,1719808243048,-150.0,0.000181,2]
[330801703,1719808243060,-150.0,0.00018125,2]
[330801704,1719808243068,-150.0,0.0001815,2]
[330801705,1719808243078,-150.0,0.00018175,2]
[330801706,1719808243087,-150.0,0.000182,2]
[330801707,1719808243097,-150.0,0.00018225,2]
[330801708,1719808243106,-150.0,0.0001825,2]
[330801710,1719808243115,-150.0,0.00018275,2]
[330801712,1719808243124,-150.0,0.000183,2]
[330801713,1719808243133,-150.0,0.00018325,2]
[330801714,1719808243144,-150.0,0.0001835,2]
[330801715,1719808243159,-150.0,0.00018375,2]
[330801716,1719808243168,-150.0,0.000184,2]
[330801717,1719808243178,-150.0,0.00018425,2]
[330801718,1719808243187,-598.20564086,0.00018447,2]
[330801719,1719808243221,-233.37226566,0.00018,2]
[330801720,1719808243232,-19.79435914,0.00018447,2]
[330801721,1719808243241,-166.0,0.00018447,2]
[330801722,1719808243251,-401.051,0.00018447,2]
[330801723,1719808243260,-448.0,0.00018447,2]
[330801724,1719808243270,-205.416,0.00018447,2]
[330801725,1719808243279,-150.0,0.0001845,2]
[330801726,1719808243292,-150.0,0.00018475,2]
[330801727,1719808243301,-150.0,0.000185,2]
[330801728,1719808243312,-150.0,0.00018525,2]
[330801729,1719808243322,-151.02465677,0.00018529,2]
[330801730,1719808243331,-70.71305269,0.00018548,2]
[330801731,1719808243342,-118.32694731,0.00018548,2]
[330801732,1719808243351,-150.0,0.0001855,2]
[330801733,1719808243361,-154.94398226,0.00018562,2]
[330801734,1719808243371,-150.0,0.00018575,2]
[330801735,1719808243381,-278.51092274,0.00018582,2]
[330801736,1719808243391,-153.3118478,0.0001859,2]
[330801737,1719808243402,-150.0,0.00018599,2]
[330801738,1719808243411,-154.86627898,0.00018601,2]
[330801739,1719808243420,-151.02465677,0.00018621,2]
[330801740,1719808243429,-150.0,0.00018624,2]
[330801741,1719808243438,-150.0,0.00018649,2]
[330801742,1719808243447,-284.38413348,0.00018654,2]
[330801743,1719808243456,-150.0,0.00018674,2]
[330801744,1719808243465,-151.55,0.00018688,2]
[330801745,1719808243475,-150.0,0.00018688,2]
[330801746,1719808243484,-153.73,0.00018688,2]
[330801747,1719808243494,-306.35,0.00018688,2]
[330801748,1719808243503,-150.0,0.00018688,2]
[330801749,1719808243513,-150.0,0.00018688,2]
[330801750,1719808243522,-150.0,0.00018699,2]
[330801751,1719808243532,-1000.0,0.000187,2]
[330801752,1719808243541,-153.3118478,0.00018708,2]
[330801753,1719808243550,-150.0,0.00018724,2]
[330801754,1719808243560,-150.0,0.00018749,2]
[330801755,1719808243570,-150.45691153,0.00018768,2]
[330801756,1719808243580,-150.0,0.00018774,2]
[330801757,1719808243590,-165.94093,0.0001879,2]
[330801758,1719808243600,-150.0,0.00018799,2]
[330801759,1719808243609,-668161.24971155,0.000188,10]
[330801760,1719808243619,-284.38413348,0.00018815,2]
[330801761,1719808243629,-150.0,0.00018824,2]
[330801762,1719808243638,-150.0,0.00018849,2]
[330801763,1719808243648,-2156.0,0.00018849,30]
[330801764,1719808243658,-278.51092274,0.00018855,2]
[330801765,1719808243667,-150.0,0.00018874,2]
[330801766,1719808243676,-150.0,0.00018899,2]
[330801767,1719808243686,-2100.0,0.00018904,2]
[330801768,1719808243695,-526.28304125,0.00018919,2]
[330801769,1719808243705,-150.0,0.00018924,2]
[330801770,1719808243714,-500.0,0.00018938,2]
[330801771,1719808243723,-500.0,0.00018938,2]
[330801772,1719808243732,-150.0,0.00018949,2]
[330801773,1719808243741,-154.86627898,0.00018959,2]
[330801774,1719808243750,-150.0,0.00018974,2]
[330801775,1719808243760,-284.38413348,0.00018988,2]
[330801776,1719808243769,-150.0,0.00018999,2]
[330801777,1719808243778,-1000.0,0.00019,3]
[330801778,1719808243788,-300.0,0.00019,2]
[330801779,1719808243797,-150.0,0.00019024,2]
[330801780,1719808243806,-150.0,0.00019049,2]
[330801781,1719808243816,-153.3118478,0.00019063,2]
[330801782,1719808243825,-151.02465677,0.00019073,2]
[330801783,1719808243835,-150.0,0.00019074,2]
[330801784,1719808243844,-227.0716558,0.00019077,2]
[330801785,1719808243853,-150.45691153,0.0001908,2]
[330801786,1719808243862,-716.40696563,0.00019098,2]
[330801787,1719808243871,-150.0,0.00019099,2]
[330801788,1719808243881,-152.28709696,0.000191,2]
[330801789,1719808243890,-153.3118478,0.00019107,2]
[330801790,1719808243900,-150.0,0.00019124,2]
[330801791,1719808243910,-600.0,0.00019137,2]
[330801792,1719808243919,-284.38413348,0.00019139,2]
[330801793,1719808243928,-151.02465677,0.00019145,2]
[330801794,1719808243937,-150.0,0.00019149,2]
[330801795,1719808243947,-278.51092274,0.00019159,2]
[330801796,1719808243956,-278.51092274,0.00019168,2]
[330801797,1719808243965,-155.81492388,0.00019172,2]
[330801798,1719808243975,-150.0,0.00019174,2]
[330801799,1719808243988,-284.38413348,0.00019174,2]
[330801800,1719808244010,-153.3118478,0.00019175,2]
[330801801,1719808244031,-150.0,0.00019178,2]
[330801802,1719808244051,-250.0,0.00019178,2]
[330801803,1719808244079,-153.41251731,0.0001918,2]
[330801804,1719808244102,-150.0,0.00019199,4]
[330801805,1719808244123,-150.0,0.00019224,4]
[330801806,1719808244144,-150.45691153,0.00019236,2]
[330801807,1719808244163,-150.0,0.00019249,4]
[330801808,1719808244181,-166.66666668,0.00019259,2]
[330801809,1719808244190,-153.3118478,0.0001926,2]
[330801810,1719808244199,-278.51092274,0.00019272,2]
[330801811,1719808244209,-150.0,0.00019274,4]
[330801812,1719808244218,-151.52380886,0.00019289,2]
[330801813,1719808244228,-278.51092274,0.00019289,2]
[330801814,1719808244237,-607.0,0.00019294,2]
[330801815,1719808244247,-150.0,0.00019299,4]
[330801816,1719808244256,-151.04669053,0.00019301,2]
[330801817,1719808244266,-150.0,0.00019323,4]
[330801818,1719808244275,-152.66657847,0.00019338,2]
[330801819,1719808244285,-278.51092274,0.00019339,2]
[330801820,1719808244294,-150.0,0.00019348,4]
[330801821,1719808244303,-520.51131707,0.0001935,2]
[330801822,1719808244313,-304.23744085,0.00019354,2]
[330801823,1719808244323,-284.38413348,0.00019367,2]
[330801824,1719808244333,-150.0,0.00019373,4]
[330801825,1719808244342,-150.0,0.00019398,4]
[330801826,1719808244351,-150.0,0.00019423,4]
[330801827,1719808244360,-150.0,0.00019448,4]
[330801828,1719808244369,-368.06271004,0.00019451,2]
[330801829,1719808244379,-150.0,0.00019473,4]
[330801830,1719808244388,-150.0,0.00019498,4]
[330801831,1719808244397,-1000.0,0.000195,3]
[330801832,1719808244407,-1014.0,0.000195,4]
[330801833,1719808244416,-2500.0,0.000195,2]
[330801834,1719808244426,-528.19,0.0001951,2]
[330801835,1719808244435,-150.46,0.0001951,2]
[330801836,1719808244445,-150.0,0.0001951,2]
[330801837,1719808244454,-528.19,0.0001951,2]
[330801838,1719808244463,-150.68,0.0001951,2]
[330801839,1719808244473,-528.26,0.0001951,2]
[330801840,1719808244483,-259.18,0.0001951,2]
[330801841,1719808244492,-150.78,0.0001951,2]
[330801842,1719808244501,-150.0,0.0001951,2]
[330801843,1719808244511,-424.18,0.0001951,2]
[330801844,1719808244520,-156.53,0.0001951,2]
[330801845,1719808244529,-150.0,0.0001951,2]
[330801846,1719808244538,-151.4,0.0001951,2]
[330801847,1719808244548,-150.0,0.0001951,2]
[330801848,1719808244557,-150.0,0.0001951,2]
[330801849,1719808244567,-164.78,0.0001951,2]
[330801850,1719808244576,-150.0,0.0001951,2]
[330801851,1719808244585,-151.71,0.0001951,2]
[330801852,1719808244594,-300.0,0.0001951,2]
[330801853,1719808244604,-166.79,0.0001951,2]
[330801854,1719808244614,-424.12,0.0001951,2]
[330801855,1719808244623,-164.78,0.0001951,2]
[330801856,1719808244631,-150.0,0.0001951,2]
[330801857,1719808244641,-300.88,0.0001951,2]
[330801858,1719808244650,-150.0,0.0001951,2]
[330801859,1719808244659,-169.92,0.0001951,2]
[330801860,1719808244668,-354.67,0.0001951,2]
[330801861,1719808244679,-354.67,0.0001951,2]
[330801862,1719808244688,-359.17,0.0001951,2]
[330801863,1719808244697,-608.55,0.0001951,2]
[330801864,1719808244707,-528.19,0.0001951,2]
[330801865,1719808244716,-354.67,0.0001951,2]
[330801866,1719808244726,-528.19,0.0001951,2]
[330801867,1719808244735,-354.72,0.0001951,2]
[330801868,1719808244744,-528.19,0.0001951,2]
[330801869,1719808244753,-528.19,0.0001951,2]
[330801870,1719808244763,-528.19,0.0001951,2]
[330801871,1719808244772,-528.19,0.0001951,2]
[330801872,1719808244781,-528.19,0.0001951,2]
[330801873,1719808244790,-150.0,0.00019523,4]
[330801874,1719808244799,-151.02465677,0.00019524,2]
[330801875,1719808244808,-255.53691839,0.00019548,2]
[330801876,1719808244819,-150.0,0.00019548,4]
[330801877,1719808244828,-284.38413348,0.0001955,2]
[330801878,1719808244840,-150.0,0.00019573,4]
[330801879,1719808244851,-284.38413348,0.00019597,2]
[330801880,1719808244860,-150.0,0.00019598,4]
[330801881,1719808244871,-1336.26768906,0.000196,2]
[330801882,1719808244880,-150.0,0.00019623,4]
[330801883,1719808244891,-150.0,0.00019648,4]
[330801884,1719808244901,-150.0,0.00019673,4]
[330801885,1719808244912,-154.83472858,0.00019679,2]
[330801886,1719808244921,-150.0,0.00019683,2]
[330801887,1719808244930,-150.0,0.00019698,4]
[330801888,1719808244940,-150.0,0.00019723,4]
[330801889,1719808244949,-523.7195419,0.00019725,2]
[330801890,1719808244958,-150.0,0.00019748,4]
[330801891,1719808244967,-150.0,0.00019773,4]
[330801892,1719808244976,-150.0,0.00019798,4]
[330801893,1719808244987,-1176.840211,0.000198,2]
[330801894,1719808244996,-150.0,0.00019823,4]
[330801895,1719808245006,-366.62136337,0.00019823,2]
[330801896,1719808245015,-154.83472858,0.00019824,2]
[330801897,1719808245025,-200.0,0.00019839,2]
[330801898,1719808245034,-150.0,0.00019848,4]
[330801899,1719808245043,-150.0,0.00019873,4]
[330801900,1719808245052,-154.94398226,0.00019881,2]
[330801901,1719808245063,-220.12,0.0001989,3]
[330801902,1719808245072,-699.89983491,0.00019892,2]
[330801903,1719808245080,-699.89983491,0.00019894,2]
[330801904,1719808245089,-699.89983491,0.00019896,2]
[330801905,1719808245101,-150.0,0.00019898,4]
[330801906,1719808245110,-699.89983491,0.00019898,2]
[330801907,1719808245120,-7500.0,0.00019899,2]
[330801908,1719808245130,-634.50582799,0.00019899,3]
[330801909,1719808245139,-1765.5228,0.000199,2]
[330801910,1719808245150,-269.67300913,0.000199,2]
[330801911,1719808245163,-181.44669515,0.000199,2]
[330801912,1719808245172,-444.9185,0.000199,2]
[330801913,1719808245181,-6064.44298366,0.000199,2]
[330801914,1719808245190,-699.89983491,0.000199,2]
[330801915,1719808245202,-150.0,0.00019923,4]
[330801917,1719808245211,-150.0,0.00019948,4]
[330801918,1719808245221,-173.17508508,0.00019964,2]
[330801919,1719808245233,-155.74222071,0.00019971,2]
[330801920,1719808245242,-151.9490236,0.00019973,4]
[330801921,1719808245251,-151.0,0.00019974,30]
[330801922,1719808245260,-151.02465677,0.00019977,2]
[330801923,1719808245269,-1059.20946187,0.0001999,2]
[330801924,1719808245278,-175.20875585,0.0001999,2]
[330801925,1719808245287,-400.0,0.00019992,2]
[330801926,1719808245297,-153.3118478,0.00019997,2]
[330801927,1719808245306,-507.0,0.00019998,2]
[330801928,1719808245317,-2105.59588917,0.00019998,2]
[330801929,1719808245326,-2000.0,0.00019999,2]
[330801930,1719808245336,-155.38465714,0.00019999,2]
[330801931,1719808245345,-500.0,0.00019999,2]
[330801932,1719808245355,-500.0,0.00019999,2]
[330801933,1719808245364,-507.19107781,0.00019999,2]
[330801934,1719808245373,-489.73219998,0.00019999,2]
[330801935,1719808245382,-500.0,0.00019999,2]
[330801936,1719808245391,-500.0,0.00019999,2]
[330801937,1719808245400,-500.0,0.00019999,2]
[330801938,1719808245410,-450.82450486,0.00019999,2]
[330801939,1719808245419,-500.0,0.00019999,2]
[330801940,1719808245428,-500.0,0.00019999,2]
[330801941,1719808245439,-209.10334459,0.00019999,2]
[330801942,1719808245447,-232.44168745,0.00019999,2]
[330801943,1719808245455,-500.0,0.00019999,2]
[330801944,1719808245464,-300.08136539,0.00019999,2]
[330801945,1719808245474,-500.0,0.00019999,2]
[330801946,1719808245483,-500.0,0.00019999,2]
[330801947,1719808245668,-500.0,0.00019999,2]
[330801948,1719808245678,-173.46598822,0.00019999,2]
[330801949,1719808245687,-500.0,0.00019999,2]
[330801950,1719808245698,-500.0,0.00019999,2]
[330801951,1719808245708,-500.0,0.00019999,2]
[330801952,1719808245717,-440.8038956,0.00019999,2]
[330801953,1719808245726,-500.0,0.00019999,2]
[330801954,1719808245735,-500.0,0.00019999,2]
[330801955,1719808245745,-500.0,0.00019999,2]
[330801956,1719808245754,-500.0,0.00019999,2]
[330801957,1719808245764,-500.0,0.00019999,2]
[330801958,1719808245773,-500.0,0.00019999,2]
[330801959,1719808245782,-450.49555733,0.00019999,2]
[330801960,1719808245791,-500.0,0.00019999,2]
[330801961,1719808245800,-500.0,0.00019999,2]
[330801962,1719808245810,-500.0,0.00019999,2]
[330801963,1719808245819,-500.0,0.00019999,2]
[330801964,1719808245828,-500.0,0.00019999,2]
[330801965,1719808245837,-500.0,0.00019999,2]
[330801966,1719808245847,-500.0,0.00019999,2]
[330801967,1719808245856,-500.0,0.00019999,2]
[330801968,1719808245865,-500.0,0.00019999,2]
[330801969,1719808245874,-488.13868304,0.00019999,2]
[330801970,1719808245883,-500.0,0.00019999,2]
[330801971,1719808245893,-500.0,0.00019999,2]
[330801972,1719808245902,-398.74831256,0.00019999,2]
[330801973,1719808245912,-500.0,0.00019999,2]
[330801974,1719808245922,-500.0,0.00019999,2]
[330801975,1719808245933,-500.0,0.00019999,2]
[330801976,1719808245942,-500.0,0.00019999,2]
[330801977,1719808245951,-500.0,0.00019999,2]
[330801978,1719808245960,-500.0,0.00019999,2]
[330801979,1719808245970,-307.88650172,0.00019999,2]
[330801980,1719808245978,-500.0,0.00019999,2]
[330801981,1719808245988,-500.0,0.00019999,2]
[330801982,1719808245997,-520.48074983,0.00019999,2]
[330801983,1719808246006,-500.0,0.00019999,2]
[330801984,1719808246015,-638.38938947,0.00019999,2]
[330801985,1719808246024,-500.0,0.00019999,2]
[330801986,1719808246033,-500.0,0.00019999,2]
[330801987,1719808246042,-500.0,0.00019999,2]
[330801988,1719808246051,-500.0,0.00019999,2]
[330801989,1719808246060,-500.0,0.00019999,2]
[330801990,1719808246070,-500.0,0.00019999,2]
[330801991,1719808246079,-600.01740983,0.00019999,2]
[330801992,1719808246088,-500.0,0.00019999,2]
[330801993,1719808246097,-500.0,0.00019999,2]
[330801994,1719808246106,-500.0,0.00019999,2]
[330801995,1719808246117,-500.0,0.00019999,2]
[330801996,1719808246125,-500.0,0.00019999,2]
[330801997,1719808246134,-631.57067354,0.00019999,2]
[330801998,1719808246143,-500.0,0.00019999,2]
[330801999,1719808246155,-420.54529494,0.00019999,2]
[330802000,1719808246164,-500.0,0.00019999,2]
[330802001,1719808246173,-500.0,0.00019999,2]
[330802002,1719808246183,-500.0,0.00019999,2]
[330802003,1719808246192,-410.92428109,0.00019999,2]
[330802004,1719808246202,-500.0,0.00019999,2]
[330802005,1719808246211,-500.0,0.00019999,2]
[330802006,1719808246220,-500.0,0.00019999,2]
[330802007,1719808246230,-500.0,0.00019999,2]
[330802008,1719808246240,-500.0,0.00019999,2]
[330802009,1719808246249,-354.72692337,0.00019999,2]
[330802010,1719808246258,-166.31975543,0.00019999,2]
[330802011,1719808246267,-500.0,0.00019999,2]
[330802012,1719808246276,-403.31735162,0.00019999,2]
[330802013,1719808246286,-500.0,0.00019999,2]
[330802014,1719808246295,-500.0,0.00019999,2]
[330802015,1719808246304,-500.0,0.00019999,2]
[330802016,1719808246314,-500.0,0.00019999,2]
[330802017,1719808246323,-500.0,0.00019999,2]
[330802018,1719808246332,-500.0,0.00019999,2]
[330802019,1719808246342,-500.0,0.00019999,2]
[330802020,1719808246351,-500.0,0.00019999,2]
[330802021,1719808246360,-500.0,0.00019999,2]
[330802022,1719808246369,-500.0,0.00019999,2]
[330802023,1719808246378,-500.0,0.00019999,2]
[330802024,1719808246388,-500.0,0.00019999,2]
[330802025,1719808246398,-500.0,0.00019999,2]
[330802026,1719808246408,-500.0,0.00019999,2]
[330802027,1719808246417,-500.0,0.00019999,2]
[330802028,1719808246427,-500.0,0.00019999,2]
[330802029,1719808246437,-500.0,0.00019999,2]
[330802030,1719808246447,-500.0,0.00019999,2]
[330802031,1719808246457,-500.0,0.00019999,2]
[330802032,1719808246467,-500.0,0.00019999,2]
[330802033,1719808246476,-500.0,0.00019999,2]
[330802034,1719808246485,-860.27070139,0.00019999,2]
[330802035,1719808246495,-860.27070139,0.00019999,2]
[330802036,1719808246505,-860.27070139,0.00019999,2]
[330802037,1719808246514,-860.27070139,0.00019999,2]
[330802038,1719808246524,-860.27070139,0.00019999,2]
[330802039,1719808246533,-860.27070139,0.00019999,2]
[330802040,1719808246543,-860.27070139,0.00019999,2]
[330802041,1719808246552,-860.27070139,0.00019999,2]
[330802042,1719808246563,-860.27070139,0.00019999,2]
[330802043,1719808246572,-860.27070139,0.00019999,2]
[330802044,1719808246581,-860.27070139,0.00019999,2]
[330802045,1719808246591,-860.27070139,0.00019999,2]
[330802046,1719808246600,-860.27070139,0.00019999,2]
[330802047,1719808246610,-860.27070139,0.00019999,2]
[330802048,1719808246619,-860.27070139,0.00019999,2]
[330802049,1719808246629,-860.27070139,0.00019999,2]
[330802050,1719808246638,-860.27070139,0.00019999,2]
[330802051,1719808246648,-860.27070139,0.00019999,2]
[330802052,1719808246657,-860.27070139,0.00019999,2]